bitfinex-derivatives/quotes_SOLF0:USTF0_20251107
["timestamp","ask_amount","ask_price","bid_price","bid_amount"]
[1762516659522,3.2,153.88,153.78,3.01]
[1762516659819,0.04111124,153.85,153.81,3.05393882]
[1762516660021,0.04111124,153.85,153.81,0.04393882]
[1762516660022,3.20111124,153.85,153.81,0.04393882]
[1762516660718,3.20111124,153.85,153.81,3.05393882]
[1762516660928,3.20111124,153.85,153.81,0.04393882]
[1762516661523,9.05401124,153.85,153.81,0.04393882]
[1762516662027,3.16,153.84,153.81,0.04393882]
[1762516662527,3.16,153.83,153.81,0.04393882]
[1762516663027,9.0137,153.83,153.81,0.04393882]
[1762516663323,3.16,153.82,153.81,0.04393882]
[1762516664914,5.8549,153.8,153.74,5.8568]
[1762516665122,3.1,153.8,153.73,3.22]
[1762516665730,3.1,153.74,153.68,3.22]
[1762516665920,3.1,153.77,153.68,3.22]
[1762516666121,0.0462921,153.73,153.71,5.858]
[1762516666321,0.0462921,153.73,153.69,3.22]
[1762516666621,0.0462921,153.73,153.7,5.8584]
[1762516666824,0.0462921,153.73,153.7,3.22]
[1762516669026,0.0462921,153.73,153.71,5.858]
[1762516670325,0.0462921,153.73,153.7,3.22]
[1762516670735,0.0462921,153.73,153.7,9.0782]
[1762516671629,3.1462921,153.73,153.69,3.26220397]
[1762516671825,3.1462921,153.73,153.69,0.04220397]
[1762516672226,9.0037921,153.73,153.69,0.04220397]
[1762516672530,3.1,153.72,153.69,0.04220397]
[1762516672831,3.1,153.7,153.69,0.04220397]
[1762516675034,3.1,153.7,153.63,3.22]
[1762516675830,0.04492252,153.68,153.65,0.04204545]
[1762516676037,3.1,153.67,153.65,0.04204545]
[1762516680736,8.9598,153.67,153.65,0.04204545]
[1762516680935,0.04492252,153.68,153.65,3.26204545]
[1762516681331,0.04492252,153.68,153.67,3.22]
[1762516681526,0.04492252,153.68,153.65,0.04204545]
[1762516681527,0.04492252,153.68,153.65,3.26204545]
[1762516682430,3.14492252,153.68,153.65,0.04204545]
[1762516683934,0.04492252,153.68,153.65,3.26204545]
[1762516684137,5.11796805,153.75,153.65,3.26204545]
[1762516684138,3.1,153.75,153.66,3.22]
[1762516684430,20.13949164,153.85,153.71,3.22]
[1762516684431,3.1,153.78,153.71,3.22]
[1762516684633,19.26486799,153.87,153.71,3.22]
[1762516684634,8.21584228,153.82,153.72,3.22]
[1762516684828,3.1,153.82,153.72,3.22]
[1762516685024,3.1,153.86,153.73,3.22]
[1762516685224,6.001741,153.87,153.72,66.7]
[1762516685225,0.04119939,153.81,153.78,0.0433433]
[1762516685423,3.14119939,153.81,153.78,0.0433433]
[1762516685830,3.1,153.79,153.78,0.0433433]
[1762516687631,0.04119939,153.81,153.78,0.0433433]
[1762516687929,0.04119939,153.81,153.78,3.2633433]
[1762516689041,0.04119939,153.81,153.79,5.855]
[1762516689539,0.04119939,153.81,153.78,0.0433433]
[1762516691230,0.04119939,153.81,153.78,5.8986433]
[1762516691429,0.04119939,153.81,153.79,3.22]
[1762516691939,0.04119939,153.81,153.79,9.075]
[1762516692140,0.04119939,153.81,153.8,3.22]
[1762516696543,5.8519,153.88,153.8,3.22]
[1762516696544,11.853641,153.88,153.82,3.25]
[1762516696736,8.36065239,153.87,153.82,3.25]
[1762516697041,5.15065239,153.86,153.82,9.1038]
[1762516697236,5.15065239,153.85,153.82,9.1038]
[1762516697443,5.15065239,153.84,153.82,9.15208296]
[1762516697638,0.04874125,153.85,153.83,9.1034]
[1762516697839,5.15171268,153.84,153.83,9.1034]
[1762516698643,0.04874125,153.85,153.84,3.25]
[1762516699650,6.001741,153.94,153.87,3.25]
[1762516699846,5.15133964,153.93,153.87,3.25]
[1762516700043,5.15133964,153.92,153.87,3.25]
[1762516700242,203.73403416,153.95,153.87,3.25]
[1762516700442,0.04274752,153.93,153.89,0.04747746]
[1762516700647,5.14966036,153.92,153.89,0.04747746]
[1762516700950,3.21,153.9,153.89,0.04747746]
[1762516701149,8.35966036,153.9,153.89,0.04747746]
[1762516701555,3.21,153.89,153.79,3.25]
[1762516701744,5.14966036,153.88,153.79,3.25]
[1762516701944,5.14966036,153.87,153.79,3.25]
[1762516702249,5.14966036,153.86,153.79,3.25]
[1762516702445,3.21,153.89,153.81,0.04512867]
[1762516702752,0.04986217,153.84,153.83,3.25]
[1762516702946,0.04550862,153.85,153.83,3.25]
[1762516705247,0.04550862,153.85,153.83,9.1034]
[1762516705548,0.04550862,153.85,153.84,3.25]
[1762516706147,3.25550862,153.85,153.82,0.04174363]
[1762516706749,0.04550862,153.85,153.82,0.04174363]
[1762516706954,0.04550862,153.85,153.82,3.29174363]
[1762516708951,3.25550862,153.85,153.82,0.04174363]
[1762516713250,9.10840862,153.85,153.82,0.04174363]
[1762516713756,3.21,153.83,153.82,0.04174363]
[1762516717854,0.04550862,153.85,153.82,3.29174363]
[1762516719060,0.04550862,153.85,153.82,9.14564363]
[1762516719563,3.17550862,153.85,153.82,0.04174363]
[1762516721060,3.13,153.83,153.82,0.04174363]
[1762516723156,0.04550862,153.85,153.82,3.26174363]
[1762516724165,5.16873058,153.84,153.82,3.26174363]
[1762516724460,0.04550862,153.85,153.82,3.26174363]
[1762516724853,5.16923898,153.84,153.82,3.26174363]
[1762516725058,0.04550862,153.85,153.82,3.26174363]
[1762516725252,5.16923898,153.84,153.82,3.26174363]
[1762516725458,0.04550862,153.85,153.82,3.26174363]
[1762516725660,0.04550862,153.85,153.83,3.21]
[1762516726166,0.04550862,153.85,153.83,9.0636]
[1762516726561,0.04550862,153.85,153.83,3.21]
[1762516728657,3.12550862,153.85,153.82,0.04174363]
[1762516729557,8.97850862,153.85,153.82,0.04174363]
[1762516729960,14.98024962,153.85,153.82,0.04174363]
[1762516732065,3.08,153.84,153.82,0.04174363]
[1762516732962,6.04724962,153.85,153.82,3.25174363]
[1762516733165,0.04550862,153.85,153.82,3.25174363]
[1762516733566,3.12550862,153.85,153.82,3.25174363]
[1762516735166,3.12550862,153.85,153.82,0.04174363]
[1762516737672,5.17384459,153.84,153.82,0.04174363]
[1762516737874,5.17384459,153.83,153.82,0.04174363]
[1762516738872,5.17384459,153.83,153.82,3.25174363]
[1762516739075,0.04550862,153.85,153.84,3.21]
[1762516739278,5.21924393,153.85,153.84,3.21]
[1762516739480,5.21924393,153.85,153.83,9.0636]
[1762516739674,5.17373531,153.84,153.83,9.0636]
[1762516740573,0.04550862,153.85,153.83,9.0636]
[1762516741673,0.04550862,153.85,153.83,3.21]
[1762516741873,0.04550862,153.85,153.82,0.04174363]
[1762516741874,8.29282184,153.84,153.82,0.04174363]
[1762516742074,3.08,153.84,153.82,0.04174363]
[1762516742775,0.04550862,153.85,153.82,3.25174363]
[1762516742981,5.213285,153.84,153.82,3.25174363]
[1762516743179,3.12550862,153.85,153.82,3.25174363]
[1762516743381,5.21329426,153.84,153.83,3.21]
[1762516743577,6.001741,153.9,153.83,3.21]
[1762516743786,11.6959,153.99,153.89,3.21]
[1762516743787,3.08,153.96,153.89,3.21]
[1762516743978,3.08,153.95,153.89,9.0612]
[1762516744278,3.08,153.94,153.86,5.35274788]
[1762516744684,3.08,153.91,153.88,0.0428353]
[1762516745073,8.9307,153.91,153.88,0.0428353]
[1762516745378,0.04533829,153.92,153.88,0.0428353]
[1762516745379,3.08,153.9,153.88,0.0428353]
[1762516745577,3.08,153.89,153.88,0.0428353]
[1762516746376,3.08,153.91,153.88,0.0428353]
[1762516747174,8.9307,153.91,153.88,0.0428353]
[1762516747377,3.08,153.9,153.88,0.0428353]
[1762516749586,3.12533829,153.92,153.88,0.0428353]
[1762516751977,3.12533829,153.92,153.88,3.2528353]
[1762516752179,0.04533829,153.92,153.91,3.21]
[1762516752682,0.04533829,153.92,153.88,3.2528353]
[1762516752986,0.04533829,153.92,153.9,3.21]
[1762516754482,0.04533829,153.92,153.9,9.0609]
[1762516754681,0.04533829,153.92,153.89,3.2]
[1762516754882,0.04533829,153.92,153.9,5.34274788]
[1762516755984,0.04533829,153.92,153.9,2.14274788]
[1762516759695,3.03533829,153.92,153.9,2.14274788]
[1762516760393,5.1697451,153.91,153.88,5.38558318]
[1762516760690,3.03533829,153.92,153.88,5.38558318]
[1762516760890,5.1697451,153.91,153.88,5.38558318]
[1762516761094,3.03533829,153.92,153.88,5.38558318]
[1762516761292,5.1699779,153.91,153.88,5.38558318]
[1762516761593,3.03533829,153.92,153.88,5.38558318]
[1762516761892,5.1699779,153.91,153.88,5.38558318]
[1762516762081,3.03533829,153.92,153.88,11.23718318]
[1762516762285,5.16982928,153.91,153.89,3.2]
[1762516762487,3.03533829,153.92,153.89,3.2]
[1762516762682,5.17060063,153.91,153.89,3.2]
[1762516762887,3.03533829,153.92,153.89,3.2]
[1762516763089,5.17060102,153.91,153.89,3.2]
[1762516763289,3.03533829,153.92,153.89,3.2]
[1762516763488,5.17049362,153.91,153.89,3.2]
[1762516763688,3.03533829,153.92,153.89,3.2]
[1762516763887,0.04533829,153.92,153.9,3.2]
[1762516764091,0.04533829,153.92,153.91,3.2]
[1762516764292,2.99,153.98,153.91,3.2]
[1762516764595,2.99,153.98,153.9,4.64393692]
[1762516764596,5.16831227,153.97,153.93,3.2]
[1762516764796,5.16831227,153.96,153.93,3.2]
[1762516764996,2.99,153.98,153.93,3.2]
[1762516765195,8.15836544,153.97,153.93,3.2]
[1762516765495,5.16836544,153.96,153.93,3.24979939]
[1762516765688,3.03302676,153.97,153.93,3.24979939]
[1762516765892,5.16668705,153.96,153.93,3.24979939]
[1762516766100,3.03302676,153.97,153.93,3.24979939]
[1762516766305,5.16525794,153.96,153.93,3.24979939]
[1762516766507,3.03302676,153.97,153.93,3.24979939]
[1762516766806,5.16580079,153.96,153.93,3.24979939]
[1762516767000,3.03302676,153.97,153.94,3.2]
[1762516767200,5.1658004,153.96,153.94,3.2]
[1762516767402,3.03302676,153.97,153.94,3.2]
[1762516767601,5.1652484,153.96,153.94,3.2]
[1762516767803,3.03302676,153.97,153.94,3.2]
[1762516768000,5.1652484,153.96,153.94,3.2]
[1762516768207,3.03302676,153.97,153.94,3.2]
[1762516768407,5.16443299,153.96,153.94,3.2]
[1762516768609,3.03302676,153.97,153.94,3.2]
[1762516768811,5.16443299,153.96,153.94,3.2]
[1762516769010,3.03302676,153.97,153.94,3.2]
[1762516770506,3.03302676,153.97,153.93,0.04979939]
[1762516770710,8.15323526,153.96,153.93,0.04979939]
[1762516770905,2.99,153.96,153.93,0.04979939]
[1762516771106,2.99,153.96,153.93,3.24979939]
[1762516772105,2.99,153.96,153.93,0.04979939]
[1762516772705,2.99,153.94,153.93,0.04979939]
[1762516772904,8.16576854,153.94,153.93,0.04979939]
[1762516774808,5.17576854,153.94,153.93,0.04979939]
[1762516775114,2.99,153.96,153.93,0.04979939]
[1762516775423,8.16708961,153.95,153.93,0.04979939]
[1762516775606,5.17708961,153.94,153.93,0.04979939]
[1762516775911,8.16708961,153.94,153.93,0.04979939]
[1762516778510,8.16708961,153.94,153.87,3.2]
[1762516778511,2.99,153.91,153.87,3.2]
[1762516778715,8.16708961,153.9,153.86,6.54393692]
[1762516779011,5.17708961,153.89,153.86,6.54393692]
[1762516779315,2.99,153.9,153.86,6.54393692]
[1762516779517,5.18489805,153.89,153.86,6.58592001]
[1762516779703,3.03255769,153.9,153.86,6.58592001]
[1762516779904,5.18466157,153.89,153.86,6.58592001]
[1762516780215,3.03255769,153.9,153.86,6.48592001]
[1762516780411,8.2249334,153.89,153.86,3.38592001]
[1762516780717,3.04,153.87,153.86,0.04198309]
[1762516781015,8.2249334,153.87,153.86,0.04198309]
[1762516782408,3.08255769,153.9,153.86,3.14198309]
[1762516782604,5.1881244,153.89,153.86,3.14198309]
[1762516782916,0.04255769,153.9,153.88,3.1]
[1762516784318,5.18966329,153.89,153.86,0.04198309]
[1762516784509,5.18966329,153.88,153.86,0.04198309]
[1762516784815,5.18966329,153.87,153.86,0.04198309]
[1762516786014,0.04255769,153.9,153.88,3.14]
[1762516786213,5.19059183,153.89,153.88,3.14]
[1762516786916,5.19059183,153.89,153.86,6.52592001]
[1762516787116,0.04255769,153.9,153.86,6.52592001]
[1762516787315,5.19266148,153.89,153.86,6.52592001]
[1762516787518,0.04255769,153.9,153.87,3.14]
[1762516787711,5.19254268,153.89,153.87,3.14]
[1762516787911,0.04255769,153.9,153.87,3.14]
[1762516788211,5.19242427,153.89,153.87,3.14]
[1762516788411,0.04255769,153.9,153.87,3.14]
[1762516788614,5.1938177,153.89,153.87,3.14]
[1762516788821,3.25,153.87,153.86,0.04198309]
[1762516789116,5.19387404,153.87,153.86,0.04198309]
[1762516789811,8.44387404,153.87,153.86,0.04198309]
[1762516792915,3.25,153.84,153.8,3.34393692]
[1762516793125,3.25,153.82,153.79,72.2349]
[1762516793421,3.25,153.82,153.79,66.38]
[1762516793619,3.25,153.85,153.79,69.52]
[1762516793823,5.19196625,153.84,153.8,3.14]
[1762516794021,5.19196625,153.83,153.8,3.18783387]
[1762516794321,3.29936207,153.84,153.8,3.18783387]
[1762516794516,5.18999617,153.83,153.8,3.18783387]
[1762516794718,3.29936207,153.84,153.8,3.18783387]
[1762516794917,5.19011454,153.83,153.8,3.18783387]
[1762516795119,3.29936207,153.84,153.8,3.18783387]
[1762516795417,5.18806441,153.83,153.8,3.18783387]
[1762516795616,3.29936207,153.84,153.8,3.18783387]
[1762516795924,5.18806488,153.83,153.8,3.18783387]
[1762516796124,3.29936207,153.84,153.8,3.18783387]
[1762516796615,9.15266207,153.84,153.8,3.18783387]
[1762516796825,5.1864013,153.83,153.8,0.04783387]
[1762516797025,3.25,153.83,153.8,0.04783387]
[1762516799926,3.25,153.81,153.8,0.04783387]
[1762516802025,0.04936207,153.84,153.8,3.18783387]
[1762516802222,0.04936207,153.84,153.82,3.34393692]
[1762516802425,0.04936207,153.84,153.83,3.14]
[1762516803018,3.25,153.87,153.82,3.34393692]
[1762516803326,3.25,153.87,153.82,6.48393692]
[1762516803722,3.25,153.85,153.82,3.34393692]
[1762516803922,3.25,153.83,153.82,0.04284867]
[1762516804524,8.451902,153.83,153.82,0.04284867]
[1762516804724,3.25,153.82,153.77,23.02]
[1762516804924,8.45243609,153.81,153.77,23.02]
[1762516805131,3.25,153.8,153.77,23.02]
[1762516805429,3.25,153.84,153.78,3.14]
[1762516805624,8.45007627,153.83,153.79,3.34393692]
[1762516805828,0.04391702,153.83,153.8,3.14]
[1762516806028,0.04391702,153.83,153.82,3.34393692]
[1762516806427,0.04391702,153.83,153.81,3.14]
[1762516806919,0.04391702,153.83,153.81,8.9943]
[1762516807123,0.04391702,153.83,153.82,3.14]
[1762516807325,0.04391702,153.83,153.81,8.9943]
[1762516807532,0.04391702,153.83,153.79,3.18510791]
[1762516808033,0.04391702,153.83,153.82,3.14]
[1762516808936,9.1012,153.9,153.83,8.9934]
[1762516809125,8.44705749,153.89,153.83,3.14]
[1762516809326,3.25,153.89,153.84,5.8531]
[1762516809627,3.25,153.89,153.83,3.14]
[1762516809830,3.25,153.92,153.83,3.14]
[1762516810024,0.04511884,153.88,153.86,5.8523]
[1762516810224,9.0998,153.94,153.87,3.14]
[1762516810427,3.25,153.94,153.87,3.14]
[1762516810630,5.8511,153.9,153.84,69.48]
[1762516810829,3.25,153.9,153.84,69.48]
[1762516811429,3.29730018,153.89,153.85,0.04236956]
[1762516811636,0.04620704,153.89,153.85,3.18584912]
[1762516813434,0.04620704,153.89,153.87,3.14]
[1762516814744,0.04620704,153.89,153.86,8.54625075]
[1762516814933,0.04620704,153.89,153.85,3.12584912]
[1762516814934,3.03620704,153.89,153.85,3.12584912]
[1762516815639,0.04620704,153.89,153.85,3.12584912]
[1762516815834,3.03620704,153.89,153.85,3.12584912]
[1762516816137,5.8522,153.87,153.85,0.04584912]
[1762516816431,2.99,153.86,153.85,0.04584912]
[1762516816835,8.19807062,153.86,153.85,0.04584912]
[1762516817134,2.99,153.86,153.85,0.04584912]
[1762516817542,8.19977039,153.86,153.85,0.04584912]
[1762516817743,8.8433,153.84,153.79,69.4]
[1762516818036,2.99,153.84,153.79,69.4]
[1762516818236,2.99,153.82,153.79,66.32]
[1762516818632,2.99,153.82,153.79,69.44512162]
[1762516818633,0.04222809,153.82,153.79,69.44512162]
[1762516818832,0.04222809,153.82,153.8,3.08]
[1762516821735,9.02972897,153.9,153.79,66.36512162]
[1762516821736,2.99,153.87,153.79,66.36512162]
[1762516821935,2.99,153.85,153.79,66.32]
[1762516822132,2.99,153.83,153.79,66.32]
[1762516822640,2.99,153.81,153.79,66.36296541]
[1762516822845,2.99,153.81,153.79,0.04296541]
[1762516823040,8.20600376,153.8,153.79,0.04296541]
[1762516824046,8.20600376,153.8,153.74,3.08]
[1762516824244,2.99,153.78,153.72,5.02291134]
[1762516824440,8.8456,153.78,153.71,69.4]
[1762516824839,2.99,153.77,153.71,69.4]
[1762516825142,2.99,153.77,153.58,93.58]
[1762516825143,0.04256349,153.76,153.73,3.12324902]
[1762516825342,0.04162467,153.76,153.73,3.12480524]
[1762516826442,3.03162467,153.76,153.73,0.04480524]
[1762516827247,2.99,153.74,153.73,0.04480524]
[1762516827436,0.04162467,153.76,153.73,3.12480524]
[1762516827634,5.8568,153.75,153.73,0.04480524]
[1762516827837,2.99,153.74,153.73,0.04480524]
[1762516830242,0.04162467,153.76,153.73,0.04480524]
[1762516830441,0.04162467,153.76,153.74,2.14550402]
[1762516831148,3.03162467,153.76,153.73,2.19030926]
[1762516832044,2.99,153.75,153.73,2.19030926]
[1762516832441,2.99,153.75,153.73,0.04480524]
[1762516833046,8.8468,153.75,153.73,0.04480524]
[1762516833252,2.99,153.75,153.73,0.04480524]
[1762516833457,0.04162467,153.76,153.74,3.08]
[1762516833655,0.04162467,153.76,153.75,2.14550402]
[1762516834353,0.04162467,153.76,153.73,3.12480524]
[1762516837551,3.03162467,153.76,153.73,0.04480524]
[1762516838162,2.99,153.75,153.73,0.04480524]
[1762516840351,3.18,153.74,153.73,0.04480524]
[1762516842258,0.04162467,153.76,153.73,0.04480524]
[1762516842560,3.22162467,153.76,153.73,0.04480524]
[1762516842960,3.18,153.74,153.73,0.04480524]
[1762516843162,3.18,153.74,153.66,5.02546586]
[1762516843163,3.18,153.74,153.67,3.14]
[1762516843565,9.0383,153.71,153.67,3.14]
[1762516844063,9.0383,153.71,153.67,3.18701917]
[1762516844064,9.08829428,153.71,153.67,3.18701917]
[1762516844656,9.0287,153.7,153.67,0.04701917]
[1762516845569,3.17,153.68,153.67,0.04701917]
[1762516848568,3.17,153.68,153.63,280.86212534]
[1762516848759,3.17,153.65,153.59,66.3]
[1762516849162,3.17,153.65,153.58,96.78]
[1762516849362,5.861,153.64,153.58,96.78]
[1762516849568,3.21605917,153.63,153.59,3.24182841]
[1762516849869,0.04605917,153.63,153.61,3.2]
[1762516850271,0.04605917,153.63,153.59,0.04182841]
[1762516850272,3.17,153.74,153.68,3.2]
[1762516850564,9.0264,153.76,153.68,3.2]
[1762516850761,1.13209389,153.81,153.65,66.3]
[1762516850762,3.17,153.75,153.65,66.3]
[1762516850963,3.17,153.73,153.65,66.3]
[1762516851156,3.17,153.7,153.67,0.04325373]
[1762516851361,9.0710208,153.7,153.67,0.04140708]
[1762516851556,3.17,153.69,153.67,0.04140708]
[1762516852765,0.0423208,153.7,153.67,3.24140708]
[1762516852966,0.0423208,153.7,153.67,8.26687294]
[1762516853371,0.0423208,153.7,153.68,3.2]
[1762516853770,3.17,153.77,153.7,3.2]
[1762516853967,3.17,153.77,153.72,8.22546586]
[1762516854379,3.17,153.77,153.73,3.2]
[1762516854560,9.0257,153.78,153.73,3.2]
[1762516854768,0.04892757,153.77,153.75,8.22546586]
[1762516855074,0.04319416,153.78,153.75,8.22546586]
[1762516855276,0.04319416,153.78,153.76,3.2]
[1762516855774,3.17,153.82,153.76,3.2]
[1762516856068,3.17,153.82,153.75,5.02546586]
[1762516856464,5.8553,153.79,153.75,5.02546586]
[1762516856674,3.17,153.78,153.75,5.07285562]
[1762516857181,9.0257,153.78,153.75,0.04738976]
[1762516857376,3.17,153.77,153.75,0.04738976]
[1762516858471,3.21469979,153.79,153.75,0.04738976]
[1762516858873,9.06999979,153.79,153.75,0.04738976]
[1762516859375,0.04469979,153.79,153.75,3.24738976]
[1762516859577,0.04469979,153.79,153.76,3.2]
[1762516859794,0.04469979,153.79,153.75,3.24738976]
[1762516860073,0.04469979,153.79,153.75,8.27285562]
[1762516860273,0.04469979,153.79,153.76,3.2]
[1762516861268,0.04469979,153.79,153.75,5.07285562]
[1762516861464,3.21469979,153.79,153.75,5.07285562]
[1762516861675,3.21469979,153.79,153.75,8.27285562]
[1762516861676,0.04469979,153.79,153.75,8.27285562]
[1762516861879,0.04469979,153.79,153.76,3.2]
[1762516864674,3.21469979,153.79,153.75,5.07285562]
[1762516864872,8.43134768,153.78,153.75,0.04738976]
[1762516865180,3.17,153.78,153.75,0.04738976]
[1762516865381,9.0257,153.78,153.75,0.04738976]
[1762516865582,3.17,153.76,153.75,0.04738976]
[1762516865778,8.4333519,153.76,153.75,0.04738976]
[1762516865982,5.2633519,153.76,153.75,0.04738976]
[1762516866378,8.4333519,153.76,153.75,0.04738976]
[1762516866584,3.17,153.75,153.68,5.02546586]
[1762516866771,0.04469979,153.79,153.72,3.2]
[1762516866772,5.2633519,153.74,153.72,3.2]
[1762516866975,3.17,153.78,153.68,8.22546586]
[1762516867176,3.17,153.76,153.69,3.2]
[1762516867378,5.26684226,153.75,153.69,3.2]
[1762516867578,5.31447252,153.74,153.7,3.24679144]
[1762516867780,5.26684226,153.73,153.7,3.24679144]
[1762516867976,3.21763026,153.74,153.7,0.04679144]
[1762516868180,3.17,153.72,153.7,0.04679144]
[1762516868379,8.43856487,153.71,153.7,0.04679144]
[1762516869683,5.26856487,153.71,153.7,0.04679144]
[1762516869987,3.21763026,153.74,153.7,0.04679144]
[1762516870280,5.26852755,153.73,153.7,0.04679144]
[1762516870484,3.21763026,153.74,153.7,0.04679144]
[1762516870683,8.43842681,153.73,153.7,0.04679144]
[1762516870885,3.17,153.73,153.7,0.04679144]
[1762516871186,0.04763026,153.74,153.7,3.24679144]
[1762516871386,5.26862405,153.73,153.7,3.24679144]
[1762516871591,0.04763026,153.74,153.7,3.24679144]
[1762516871592,0.04763026,153.74,153.71,3.2]
[1762516872585,0.04763026,153.74,153.73,8.22546586]
[1762516872981,9.0245,153.81,153.73,3.2]
[1762516873177,3.17,153.84,153.76,3.2]
[1762516873377,5.2650983,153.83,153.79,3.2]
[1762516873585,200.5264599,153.86,153.81,5.02546586]
[1762516873788,3.17,153.91,153.84,5.02546586]
[1762516874089,0.0465107,153.89,153.86,0.04576665]
[1762516874289,5.2629904,153.88,153.86,0.04576665]
[1762516874488,0.0465107,153.89,153.86,0.04576665]
[1762516874793,5.2586779,153.88,153.86,0.04576665]
[1762516874989,3.1865107,153.89,153.86,0.04576665]
[1762516875190,5.25867838,153.88,153.86,0.04576665]
[1762516875391,3.1865107,153.89,153.86,0.04576665]
[1762516875784,5.25486918,153.88,153.86,0.04576665]
[1762516875983,3.1865107,153.89,153.86,0.04576665]
[1762516877292,0.0465107,153.89,153.86,0.04576665]
[1762516877590,3.1865107,153.89,153.86,0.04576665]
[1762516878585,3.14,153.87,153.86,0.04576665]
[1762516880993,0.0465107,153.89,153.86,2.98576665]
[1762516881381,3.1865107,153.89,153.86,0.04576665]
[1762516881790,5.23838529,153.88,153.86,0.04576665]
[1762516881986,8.37896057,153.87,153.79,2.94]
[1762516882186,3.14,153.87,153.79,2.94]
[1762516883094,3.18818256,153.85,153.81,0.04945782]
[1762516883392,0.04258144,153.85,153.81,2.98801385]
[1762516884096,5.23541142,153.94,153.84,2.94]
[1762516884291,3.14,153.98,153.86,2.94]
[1762516884491,11.07929056,153.97,153.89,5.8511]
[1762516884697,5.23069056,153.96,153.89,2.94]
[1762516884889,3.14,153.94,153.85,2.94]
[1762516885193,3.14,153.9,153.88,0.04744315]
[1762516885389,0.04823123,153.91,153.87,2.98824494]
[1762516885590,3.18691625,153.91,153.87,0.04824494]
[1762516886292,9.03781625,153.91,153.87,0.04824494]
[1762516886494,3.18691625,153.91,153.87,0.04824494]
[1762516886682,3.18691625,153.91,153.77,19.73282169]
[1762516886683,3.14,153.9,153.75,2.94]
[1762516886885,3.14,153.84,153.75,2.94]
[1762516887395,8.9938,153.83,153.75,2.94]
[1762516887889,8.9938,153.83,153.74,289.32407461]
[1762516887890,0.0443734,153.81,153.79,2.94]
[1762516888194,0.04292271,153.82,153.79,2.94]
[1762516888393,3.14,153.89,153.83,5.8536]
[1762516888587,3.14,153.89,153.75,8.54618142]
[1762516888588,3.14,153.89,153.82,2.94]
[1762516889188,3.14,153.89,153.76,2.94]
[1762516889388,72.24777009,153.93,153.81,0.0451758]
[1762516889389,0.04975419,153.84,153.81,0.0451758]
[1762516889584,0.04761247,153.84,153.81,0.04386261]
[1762516890395,0.04761247,153.84,153.81,2.98386261]
[1762516890797,3.14,153.91,153.83,2.94]
[1762516891497,8.9908,153.91,153.83,2.94]
[1762516891890,3.18608258,153.89,153.85,0.04606453]
[1762516892991,9.03758258,153.89,153.85,0.04606453]
[1762516893298,3.14,153.88,153.85,0.04606453]
[1762516893704,3.14,153.87,153.85,0.04606453]
[1762516894898,0.04608258,153.89,153.85,2.98606453]
[1762516895492,0.04608258,153.89,153.85,8.83876453]
[1762516896395,0.04608258,153.89,153.86,8.7923]
[1762516896600,0.04608258,153.89,153.86,5.8523]
[1762516896800,0.04608258,153.89,153.85,2.98606453]
[1762516896992,5.29093098,153.88,153.85,0.04606453]
[1762516897310,3.14,153.86,153.77,2.94]
[1762516897596,5.29189008,153.85,153.77,2.94]
[1762516897802,5.29189008,153.84,153.77,2.94]
[1762516897992,3.14,153.86,153.77,2.94]
[1762516898298,0.04412729,153.83,153.8,2.98625097]
[1762516900598,0.04412729,153.83,153.8,0.04625097]
[1762516901198,0.04412729,153.83,153.8,3.11625097]
[1762516901587,5.29855084,153.88,153.81,3.07]
[1762516901887,3.04,153.91,153.81,3.07]
[1762516902091,5.29830179,153.9,153.81,3.07]
[1762516902292,5.29830179,153.89,153.81,3.07]
[1762516902492,5.29830179,153.88,153.81,3.07]
[1762516902701,0.04711093,153.86,153.85,8.9227]
[1762516902902,3.04,153.91,153.85,8.9227]
[1762516902903,0.04836825,153.87,153.85,8.9227]
[1762516903904,0.04836825,153.87,153.84,0.04585877]
[1762516904105,0.04836825,153.87,153.84,3.11585877]
[1762516904809,0.04836825,153.87,153.84,5.89895877]
[1762516905003,0.04836825,153.87,153.84,3.09585877]